lending/lending_fUSD_20240112
["ID","MTS","AMOUNT","RATE_DAILY","PERIOD"]
[311294584,1705040242023,3187.14443099,0.00021694,2]
[311294585,1705040242051,50510.78554689,0.0002182,2]
[311294586,1705040243272,1096.4632242,0.0002182,2]
[311294587,1705040245960,213.49976952,0.0002182,2]
[311294588,1705040246017,1000.0,0.0002192,2]
[311294589,1705040246046,560.02043267,0.00020112,2]
[311294590,1705040246106,885.90854322,0.0002182,2]
[311294591,1705040246453,234.6910861,0.0002182,2]
[311294592,1705040246695,275.30224282,0.0002182,2]
[311294593,1705040248237,271.11150292,0.0002182,2]
[311294594,1705040248656,314.09753872,0.0002182,2]
[311294595,1705040248701,401.90417909,0.00021165,2]
[311294596,1705040248773,6077.73592096,0.0002182,2]
[311294597,1705040248901,531.87539742,0.0002182,2]
[311294598,1705040249198,1021.99046013,0.0002182,2]
[311294599,1705040249539,543.69034289,0.0002182,2]
[311294600,1705040249654,508.15236975,0.00018078,2]
[311294601,1705040251873,1597.72739359,0.00017456,2]
[311294602,1705040252565,2157.841473,0.00022477,2]
[311294603,1705040252622,3123.01195947,0.00021468,2]
[311294604,1705040253449,2176.62447328,0.00021602,2]
[311294605,1705040253482,155.0,0.0002182,2]
[311294606,1705040253949,609.2614061,0.0002182,2]
[311294607,1705040254141,1892.11622104,0.0002182,2]
[311294608,1705040254562,18948.40984176,0.0002182,2]
[311294609,1705040255041,214.36358959,0.0002182,2]
[311294610,1705040255103,155.0,0.0002182,2]
[311294611,1705040255353,291.82081919,0.0002182,2]
[311294612,1705040255846,282.90032781,0.0002182,2]
[311294613,1705040256264,15689.27549142,0.0002182,2]
[311294614,1705040256777,155.0,0.00019638,2]
[311294615,1705040259375,155.40247535,0.00022372,2]
[311294616,1705040259900,155.5799479,0.0002182,2]
[311294617,1705040260354,42953.03742992,0.00021819,2]
[311294618,1705040260804,5186.35262149,0.0002182,2]
[311294619,1705040261878,1000.0,0.0002192,2]
[311294620,1705040261912,664.19055502,0.00020112,2]
[311294621,1705040261989,363.2508013,0.00021694,2]
[311294622,1705040262011,478.06246299,0.00021694,2]
[311294623,1705040262048,750.0,0.000192,2]
[311294624,1705040262455,234.6910861,0.0002182,2]
[311294625,1705040263225,1096.4632242,0.0002182,2]
[311294626,1705040264424,156.62101118,0.0002182,2]
[311294627,1705040264789,629.94373517,0.0002182,2]
[311294628,1705040266002,50510.78554689,0.0002182,2]
[311294629,1705040267197,495.61291708,0.0002182,2]
[311294630,1705040268305,155.41500233,0.0002,2]
[311294631,1705040268695,401.90417909,0.00021165,2]
[311294632,1705040268898,534.83510215,0.0002182,2]
[311294633,1705040269543,541.0362634,0.0002182,2]
[311294634,1705040269927,1597.72739359,0.00017456,2]
[311294635,1705040271256,291.82081919,0.0002182,2]
[311294636,1705040271364,2176.62447328,0.00021602,2]
[311294637,1705040271947,4335.13,0.00021816,2]
[311294638,1705040272251,10616.19243693,0.0002182,2]
[311294639,1705040273066,18948.40984176,0.0002182,2]
[311294640,1705040273397,155.0,0.0002182,2]
[311294641,1705040273433,166.82,0.00022022,2]
[311294642,1705040274203,169.10360193,0.0002182,2]
[311294643,1705040274426,1897.75273507,0.0002182,2]
[311294644,1705040274770,3660.04816767,0.00022498,2]
[311294645,1705040274792,15625.10003233,0.00022498,2]
[311294646,1705040278644,3123.01195947,0.00021468,2]
[311294647,1705040279218,1096.4632242,0.0002182,2]
[311294648,1705040279851,282.90032781,0.0002182,2]
[311294649,1705040280170,23900.0,0.00021804,2]
[311294650,1705040280380,200.0,0.00021804,2]
[311294651,1705040280450,216.45480496,0.0002182,2]
[311294652,1705040282466,156.62101118,0.0002182,2]
[311294653,1705040282786,155.0,0.00019638,2]
[311294654,1705040282813,5186.35262149,0.0002182,2]
[311294655,1705040282976,166.45615901,0.000225,2]
[311294656,1705040283886,1000.0,0.0002192,2]
[311294657,1705040284709,300.1034,0.00022493,2]
[311294658,1705040285374,2176.62447328,0.00021602,2]
[311294659,1705040286125,46414.91198627,0.0002182,2]
[311294660,1705040286146,4095.87356062,0.0002182,2]
[311294661,1705040286733,401.90417909,0.00021165,2]
[311294662,1705040287877,1597.72739359,0.00017456,2]
[311294663,1705040289405,155.0,0.0002182,2]
[311294664,1705040291065,12194.69822158,0.0002182,2]
[311294665,1705040293013,162.59,0.00021778,2]
[311294666,1705040293257,340.6578241,0.0002182,2]
[311294667,1705040296655,3123.01195947,0.00021468,2]
[311294668,1705040297872,318.24226684,0.0002182,2]
[311294669,1705040298787,251.63244978,0.00019638,2]
[311294670,1705040299230,667.13658072,0.0002182,2]
[311294671,1705040300436,156.62101118,0.0002182,2]
[311294672,1705040301384,255.05,0.00021778,2]
[311294673,1705040303869,339.89735764,0.00017456,2]
[311294674,1705040304138,50510.78554689,0.0002182,2]
[311294675,1705040304806,3067.23877882,0.0002182,2]
[311294676,1705040306704,219.93056174,0.00021165,2]
[311294677,1705040307899,1000.0,0.0002192,2]
[311294678,1705040307945,1933.4344,0.00022497,2]
[311294679,1705040309375,2176.62447328,0.00021602,2]
[311294680,1705040309406,155.0,0.0002182,2]
[311294681,1705040314638,3123.01195947,0.00021468,2]
[311294682,1705040318882,2897.604,0.000225,2]
[311294683,1705040319444,351.27,0.00021918,2]
[311294684,1705040320437,156.62101118,0.0002182,2]
[311294685,1705040321995,10348.43646401,0.0002182,2]
[311294686,1705040322017,10000.0,0.0002182,2]
[311294687,1705040322037,10000.0,0.0002182,2]
[311294688,1705040322056,10000.0,0.0002182,2]
[311294689,1705040322077,10000.0,0.0002182,2]
[311294690,1705040322097,162.34908288,0.0002182,2]
[311294691,1705040323884,837.65091712,0.0002192,2]
[311294692,1705040323904,162.34908288,0.0002192,2]
[311294693,1705040327412,155.0,0.0002182,2]
[311294694,1705040330643,682.65091712,0.00021468,2]
[311294695,1705040330663,792.72598309,0.00021468,2]
[311294696,1705040333196,157.39029639,0.00022462,2]
[311294697,1705040335206,49.88372052,0.00021778,2]
[311294698,1705040335229,950.11627948,0.00021778,2]
[311294699,1705040335377,49.88372052,0.00021602,2]
[311294700,1705040335399,1000.0,0.00021602,2]
[311294701,1705040335420,1000.0,0.00021602,2]
[311294702,1705040335440,126.74075276,0.00021602,2]
[311294703,1705040337999,873.25924724,0.0002182,2]
[311294704,1705040338021,12558.69342296,0.0002182,2]
[311294705,1705040338215,157.39029623,0.00022486,2]
[311294706,1705040338453,156.62101118,0.0002182,2]
[311294707,1705040339896,1000.0,0.0002192,2]
[311294708,1705040340609,1007.44,0.00021778,2]
[311294709,1705040346000,300.0,0.00022489,2]
[311294710,1705040349412,156.17187593,0.0002182,2]
[311294711,1705040351377,2176.62447328,0.00021602,2]
[311294712,1705040358462,156.62101118,0.0002182,2]
[311294713,1705040360396,1214.0587,0.000225,2]
[311294714,1705040361509,200.0,0.00021723,2]
[311294715,1705040365885,1000.0,0.0002192,2]
[311294716,1705040365992,2705.0,0.0002171,2]
[311294717,1705040371386,2176.62447328,0.00021602,2]
[311294718,1705040372448,156.62101118,0.0002182,2]
[311294719,1705040373358,204.38,0.00021713,2]
[311294720,1705040381886,1000.0,0.0002192,2]
[311294721,1705040385123,231.87,0.00021706,2]
[311294722,1705040392455,156.62101118,0.00021723,2]
[311294723,1705040393380,2176.62447328,0.00021506,2]
[311294724,1705040399145,547.41,0.00021858,2]
[311294725,1705040399900,1000.0,0.0002192,2]
[311294726,1705040402470,150.0,0.00021723,2]
[311294727,1705040402709,150.0,0.00021723,2]
[311294728,1705040402930,150.0,0.00021723,2]
[311294729,1705040403125,150.0,0.00021723,2]
[311294730,1705040403295,150.0,0.00021723,2]
[311294731,1705040403484,150.0,0.00021723,2]
[311294732,1705040403913,150.0,0.00021723,2]
[311294733,1705040404152,150.0,0.00021723,2]
[311294734,1705040404505,150.0,0.00021723,2]
[311294735,1705040404712,150.0,0.00021723,2]
[311294736,1705040404852,150.0,0.00021723,2]
[311294737,1705040405070,286.28158303,0.00021723,2]
[311294738,1705040410458,194.62614507,0.00021723,2]
[311294739,1705040417379,1696.06380837,0.00021506,2]
[311294740,1705040423896,1000.0,0.0002192,2]
[311294741,1705040424826,12892.0,0.000225,2]
[311294742,1705040424849,43870.7211,0.000225,2]
[311294743,1705040433114,250.0,0.00021698,2]
[311294744,1705040435716,866.7,0.00021698,2]
[311294745,1705040439891,1000.0,0.0002192,2]
[311294746,1705040456102,1000.0,0.0002192,2]
[311294747,1705040457621,176.09,0.00022,2]
[311294748,1705040464190,1000.0,0.00022,2]
[311294749,1705040466633,256.48,0.00022,2]
[311294750,1705040467937,494.21545463,0.00022137,2]
[311294751,1705040468385,150.0,0.00021686,2]
[311294752,1705040469099,1852.42,0.00021686,2]
[311294753,1705040473904,1000.0,0.0002192,2]
[311294754,1705040491912,508.75090618,0.0002192,2]
[311294755,1705040495844,500.0,0.00021676,2]
[311294756,1705040502166,11037.09937717,0.00022496,2]
[311294757,1705040547853,695.92,0.000225,2]
[311294758,1705040549922,155.0,0.000225,2]
[311294759,1705040551668,4698.35903998,0.000225,2]
[311294760,1705040556866,1272.43,0.00021853,2]
[311294761,1705040558121,542.47,0.0002168,2]
[311294762,1705040558212,1042.80807396,0.000225,2]
[311294763,1705040558780,336.7179586,0.000225,2]
[311294764,1705040564439,229.02,0.00021692,2]
[311294765,1705040567907,151.40112,0.000225,3]
[311294766,1705040568741,151.40112,0.000225,3]
[311294767,1705040569542,151.40112,0.000225,3]
[311294768,1705040570294,151.40112,0.000225,3]
[311294769,1705040571066,151.40112,0.000225,3]
[311294770,1705040571320,750.0,0.00021692,2]
[311294771,1705040571819,151.40112,0.000225,3]
[311294772,1705040572087,220.04831573,0.000225,2]
[311294773,1705040572570,151.40112,0.000225,3]
[311294774,1705040573438,151.40112,0.000225,3]
[311294775,1705040574191,151.40112,0.000225,3]
[311294776,1705040574403,2965.7872,0.0002246,2]
[311294777,1705040574986,151.40112,0.000225,3]
[311294778,1705040575735,151.40112,0.000225,3]
[311294779,1705040576489,151.40112,0.000225,3]
[311294780,1705040577419,151.40112,0.000225,3]
[311294781,1705040577940,151.40112,0.000225,3]
[311294782,1705040578764,151.40112,0.000225,3]
[311294783,1705040579512,151.40112,0.000225,3]
[311294784,1705040580325,151.40112,0.000225,3]
[311294785,1705040581040,151.40112,0.000225,3]
[311294786,1705040581994,151.40112,0.000225,3]
[311294787,1705040582567,151.40112,0.000225,3]
[311294788,1705040583417,151.40112,0.000225,3]
[311294789,1705040584223,151.40112,0.000225,3]
[311294790,1705040584975,151.40112,0.000225,3]
[311294791,1705040585720,151.40112,0.000225,3]
[311294792,1705040586490,151.40112,0.000225,3]
[311294793,1705040587799,151.40112,0.000225,3]
[311294794,1705040588142,151.40112,0.000225,3]
[311294795,1705040588994,151.40112,0.000225,3]
[311294796,1705040589693,151.40112,0.000225,3]
[311294797,1705040590429,151.40112,0.000225,3]
[311294798,1705040591160,151.40112,0.000225,3]
[311294799,1705040591944,151.40112,0.000225,3]
[311294800,1705040592759,151.40112,0.000225,3]
[311294801,1705040593514,151.40112,0.000225,3]
[311294802,1705040594402,151.40112,0.000225,3]
[311294803,1705040595060,151.40112,0.000225,3]
[311294804,1705040595836,151.40112,0.000225,3]
[311294805,1705040596686,151.40112,0.000225,3]
[311294806,1705040596729,486.39012387,0.000225,2]
[311294807,1705040597457,151.40112,0.000225,3]
[311294808,1705040598765,151.40112,0.000225,3]
[311294809,1705040599024,151.40112,0.000225,3]
[311294810,1705040599812,151.40112,0.000225,3]
[311294811,1705040600586,151.40112,0.000225,3]
[311294812,1705040601381,151.40112,0.000225,3]
[311294813,1705040602918,151.40112,0.000225,3]
[311294814,1705040603729,91.59328,0.000225,3]
[311294815,1705040603748,59.80784,0.000225,3]
[311294816,1705040604551,151.40112,0.000225,3]
[311294817,1705040604689,625.9,0.00019798,2]
[311294818,1705040605288,151.40112,0.000225,3]
[311294819,1705040605398,11.48992,0.00022062,2]
[311294820,1705040605419,614.41008,0.00022062,2]
[311294821,1705040606030,151.40112,0.000225,3]
[311294822,1705040606097,151.40112,0.000225,3]
[311294823,1705040606767,82.78768,0.000225,3]
[311294824,1705040606787,68.61344,0.000225,3]
[311294825,1705040607490,151.40112,0.000225,3]
[311294826,1705040608318,151.40112,0.000225,3]
[311294827,1705040609025,171.11,0.00016712,2]
[311294828,1705040609108,151.40112,0.000225,3]
[311294829,1705040609867,151.40112,0.000225,3]
[311294830,1705040610574,151.40112,0.000225,3]
[311294831,1705040611401,3.27096,0.000225,3]
[311294832,1705040611422,148.13016,0.000225,3]
[311294833,1705040612144,151.40112,0.000225,3]
[311294834,1705040612888,151.40112,0.000225,3]
[311294835,1705040613682,151.40112,0.000225,3]
[311294836,1705040614802,151.40112,0.000225,3]
[311294837,1705040615276,151.40112,0.000225,3]
[311294838,1705040615896,94.86424,0.000225,3]
[311294839,1705040615919,56.53688,0.000225,3]
[311294840,1705040616712,151.40112,0.000225,3]
[311294841,1705040617081,792.062,0.00021712,2]
[311294842,1705040617101,1000.0,0.00021712,2]
[311294843,1705040617120,1000.0,0.00021712,2]
[311294844,1705040617139,1000.0,0.00021712,2]
[311294845,1705040617158,1000.0,0.00021712,2]
[311294846,1705040617179,150.0,0.00021712,2]
[311294847,1705040617202,150.0,0.00021712,2]
[311294848,1705040617222,150.0,0.00021712,2]
[311294849,1705040617242,150.0,0.00021712,2]
[311294850,1705040617261,150.0,0.00021712,2]
[311294851,1705040617280,150.0,0.00021712,2]
[311294852,1705040617303,150.0,0.00021712,2]
[311294853,1705040617329,277.038,0.00021712,2]
[311294854,1705040617496,151.40112,0.000225,3]
[311294855,1705040618281,151.40112,0.000225,3]
[311294856,1705040618372,434.51,0.00021702,2]
[311294857,1705040619591,151.40112,0.000225,3]
[311294858,1705040619913,151.40112,0.000225,3]
[311294859,1705040620165,4698.35903998,0.000225,2]
[311294860,1705040620531,151.40112,0.000225,3]
[311294861,1705040621191,151.40112,0.000225,3]
[311294862,1705040621654,200.0,0.00021695,2]
[311294863,1705040621922,151.40112,0.000225,3]
[311294864,1705040622634,151.40112,0.000225,3]
[311294865,1705040623721,151.40112,0.000225,3]
[311294866,1705040624222,151.40112,0.000225,3]
[311294867,1705040625031,151.40112,0.000225,3]
[311294868,1705040625718,151.40112,0.000225,3]
[311294869,1705040626413,151.40112,0.000225,3]
[311294870,1705040627110,151.40112,0.000225,3]
[311294871,1705040627833,151.40112,0.000225,3]
[311294872,1705040628546,151.40112,0.000225,3]
[311294873,1705040629253,151.40112,0.000225,3]
[311294874,1705040630071,150.0,0.000225,3]
[311294875,1705040630095,1.40112,0.000225,3]
[311294876,1705040630607,151.40112,0.000225,3]
[311294877,1705040631380,150.0,0.000225,3]
[311294878,1705040631401,1.40112,0.000225,3]
[311294879,1705040632105,148.59888,0.000225,3]
[311294880,1705040632128,2.80224,0.000225,3]
[311294881,1705040632850,147.19776,0.000225,3]
[311294882,1705040632872,4.20336,0.000225,3]
[311294883,1705040633613,145.79664,0.000225,3]
[311294884,1705040633634,5.60448,0.000225,3]
[311294885,1705040634378,144.39552,0.000225,3]
[311294886,1705040634403,7.0056,0.000225,3]
[311294887,1705040635084,151.40112,0.000225,3]
[311294888,1705040635671,151.40112,0.000225,3]
[311294889,1705040636415,151.40112,0.000225,3]
[311294890,1705040637121,151.40112,0.000225,3]
[311294891,1705040637834,151.40112,0.000225,3]
[311294892,1705040638545,151.40112,0.000225,3]
[311294893,1705040639319,151.40112,0.000225,3]
[311294894,1705040640016,151.40112,0.000225,3]
[311294895,1705040640678,151.40112,0.000225,3]
[311294896,1705040641372,151.40112,0.000225,3]
[311294897,1705040642074,151.40112,0.000225,3]
[311294898,1705040642788,151.40112,0.000225,3]
[311294899,1705040643582,170.39,0.00017362,2]
[311294900,1705040644037,6713.8,0.00021725,2]
[311294901,1705040645086,311.82431684,0.000225,2]
[311294902,1705040656783,2209.43,0.00021728,2]
[311294903,1705040668151,16850.6436,0.00022498,2]
[311294907,1705040672508,150.0,0.00021728,2]
[311294908,1705040672530,24.71,0.00021728,2]
[311294915,1705040692736,125.29,0.00021903,2]
[311294916,1705040692759,64.38,0.00021903,2]
[311294917,1705040692798,189.67,0.00021963,2]
[311294918,1705040692962,189.67,0.00022023,2]
[311294919,1705040693182,189.67,0.00022083,2]
[311294920,1705040693585,189.67,0.00022143,2]
[311294921,1705040693782,189.67,0.00022203,2]
[311294922,1705040694088,189.67,0.00022263,2]
[311294923,1705040694284,189.67,0.00022323,2]
[311294924,1705040694482,189.67,0.00022383,2]
[311294925,1705040694725,189.67,0.00022443,2]
[311294926,1705040702263,635.21,0.00021686,2]
[311294927,1705040703212,504.758,0.000225,2]
[311294930,1705040728668,203.47212683,0.00022435,2]
[311294931,1705040734251,205.0,0.00022398,2]
[311294932,1705040734744,203.47212683,0.00022448,2]
[311294933,1705040752029,200.0,0.00021676,2]
[311294934,1705040752250,1569.89,0.00021676,2]
[311294936,1705040761979,150.0,0.0002186,2]
[311294937,1705040762008,150.0,0.0002186,2]
[311294938,1705040762040,13371.01,0.0002186,2]
[311294942,1705040772867,2000.0,0.00021666,2]
[311294948,1705040789334,200.0,0.00021653,2]
[311294949,1705040792281,3200.0,0.00022,2]
[311294953,1705040796448,200.0,0.0002165,2]
[311294959,1705040827618,23900.0,0.00021658,2]
[311294960,1705040839359,-311.82431684,0.00022502,2]
[311294961,1705040839381,-150.0,0.00022502,2]
[311294962,1705040839403,-189.67,0.00022503,2]
[311294963,1705040839422,-31.24868563,0.0002251,2]
[311294964,1705040842478,2705.0,0.00021682,2]
[311294965,1705040912697,250.0,0.00021687,2]
[311294966,1705040915989,150.0,0.00021687,2]
[311294967,1705040924775,1852.42,0.00021679,2]
[311295003,1705041031819,-157.39029623,0.00022511,2]
[311295005,1705041031829,-157.39029623,0.00022535,2]
[311295006,1705041031839,-1309.16589552,0.00022547,2]
[311295007,1705041031851,-2311.8347278,0.00022547,2]
[311295008,1705041031861,-176.09,0.00022548,2]
[311295009,1705041031869,-502.69559914,0.00022548,2]
[311295016,1705041031932,-385.89614631,0.00022548,2]
[311295018,1705041031941,-157.39029623,0.00022559,2]
[311295019,1705041031950,-9550.66631016,0.00022559,2]
[311295021,1705041031962,-1847.80554055,0.00022559,2]
[311295022,1705041031994,-27601.52814929,0.00022559,2]
[311295023,1705041032003,-499.99,0.00022562,2]
[311295025,1705041032012,-189.67,0.00022564,2]
[311295027,1705041032021,-157.39029623,0.00022584,2]
[311295029,1705041032030,-179.999999,0.00022598,2]
[311295031,1705041032039,-4346.25511422,0.00022598,2]
[311295032,1705041032048,-10541.90249824,0.00022598,2]
[311295034,1705041032061,-161.55391686,0.00022598,2]
[311295037,1705041032070,-202.40022443,0.00022598,2]
[311295039,1705041032079,-403.76748934,0.00022598,2]
[311295042,1705041032088,-313.85189118,0.00022598,2]
[311295044,1705041032098,-2136.50191239,0.00022598,2]
[311295047,1705041032107,-2294.06747086,0.00022598,2]
[311295049,1705041032117,-528.57068135,0.00022598,2]
[311295052,1705041032126,-43059.09387835,0.00022598,2]
[311295054,1705041032135,-615.98,0.00022598,2]
[311295056,1705041032144,-155.0,0.00022598,2]
[311295059,1705041032153,-1042.18813435,0.00022598,2]
[311295061,1705041032163,-338.12034997,0.00022598,2]
[311295063,1705041032172,-220.97958904,0.00022598,2]
[311295065,1705041032181,-204.25460702,0.00022598,2]
[311295067,1705041032190,-431.27336954,0.00022598,2]
[311295068,1705041032199,-453.70899233,0.00022598,2]
[311295070,1705041032209,-1254.5494995,0.00022599,2]
[311295072,1705041032218,-500.78147239,0.00022599,2]
[311295074,1705041032227,-363.58390489,0.00022599,2]
[311295076,1705041032237,-5436.16739237,0.00022599,2]
[311295078,1705041032246,-42589.87011601,0.000226,2]
[311295081,1705041032270,-477.94521477,0.000226,2]
[311295082,1705041032280,-698.73455553,0.000226,2]
[311295097,1705041038209,-39543.66691369,0.000226,2]
[311295098,1705041038218,-351.08560145,0.000226,2]
[311295099,1705041038228,-155.56393187,0.000226,2]
[311295100,1705041038238,-157.39029623,0.00022608,2]
[311295101,1705041038255,-189.67,0.00022624,2]
[311295102,1705041038264,-157.39029623,0.00022632,2]
[311295103,1705041038273,-155.56393183,0.00022643,2]
[311295104,1705041038282,-157.39029623,0.00022657,2]
[311295105,1705041038291,-434.51,0.0002268,2]
[311295106,1705041038300,-157.39029623,0.00022681,2]
[311295107,1705041038310,-189.67,0.00022684,2]
[311295108,1705041038320,-155.56393183,0.00022686,2]
[311295109,1705041038329,-1462.06622844,0.00022698,4]
[311295110,1705041038339,-131472.8529,0.000227,2]
[311295111,1705041038348,-245000.0,0.000227,2]
[311295112,1705041038357,-157.39029623,0.00022705,2]
[311295113,1705041038366,-719.26828792,0.00022726,2]
[311295114,1705041038375,-155.56393183,0.00022729,2]
[311295115,1705041038385,-157.39029623,0.0002273,2]
[311295116,1705041038394,-150.0,0.00022735,2]
[311295117,1705041038403,-189.67,0.00022744,2]
[311295118,1705041038413,-157.39029623,0.00022754,2]
[311295119,1705041038422,-200.0,0.00022765,2]
[311295120,1705041038432,-150.0,0.00022771,2]
[311295121,1705041038441,-155.56393183,0.00022771,2]
[311295122,1705041038450,-157.39029623,0.00022778,2]
[311295123,1705041038459,-200.0,0.00022783,2]
[311295124,1705041038469,-800.0,0.00022783,2]
[311295125,1705041038478,-157.39029623,0.00022803,2]
[311295126,1705041038487,-189.67,0.00022804,2]
[311295127,1705041038496,-155.56393183,0.00022814,2]
[311295128,1705041038505,-200.0,0.00022815,2]
[311295129,1705041038514,-800.0,0.00022815,2]
[311295130,1705041038523,-157.39029623,0.00022827,2]
[311295131,1705041038532,-157.39029623,0.00022851,2]
[311295132,1705041038541,-189.67,0.00022864,2]
[311295133,1705041038550,-157.39029623,0.00022876,2]
[311295134,1705041038560,-1000.0,0.00022885,2]
[311295135,1705041038569,-1000.0,0.00022885,2]
[311295136,1705041038578,-1000.0,0.00022885,2]
[311295137,1705041038591,-1000.0,0.00022885,2]
[311295138,1705041038600,-1000.0,0.00022885,2]
[311295139,1705041038609,-369.1928,0.00022885,2]
[311295140,1705041038618,-500.0,0.00022885,2]
[311295141,1705041038627,-500.0,0.00022885,2]
[311295142,1705041038636,-500.0,0.00022885,2]
[311295143,1705041038645,-500.0,0.00022885,2]
[311295144,1705041038654,-195.5749,0.00022885,2]
[311295145,1705041038663,-338.55890367,0.00022895,2]
[311295146,1705041038673,-345.44939268,0.00022896,2]
[311295147,1705041038683,-3757.82699948,0.00022897,2]
[311295148,1705041038693,-721.63,0.00022898,2]
[311295149,1705041038702,-3002.88934252,0.00022898,2]
[311295150,1705041038711,-207.51207034,0.00022898,2]
[311295151,1705041038720,-1945.65770151,0.00022898,2]
[311295152,1705041038730,-155.0,0.00022898,2]
[311295153,1705041038739,-171.33736682,0.00022898,2]
[311295154,1705041038748,-1000.0,0.00022899,2]
[311295155,1705041038757,-1000.0,0.00022899,2]
[311295156,1705041038766,-165.92287658,0.00022899,2]
[311295157,1705041038775,-4986.87736063,0.00022899,2]
[311295158,1705041038784,-174.70904684,0.00022899,2]
[311295159,1705041038794,-4986.87736056,0.00022899,2]
[311295160,1705041038803,-4986.87736056,0.00022899,2]
[311295161,1705041038814,-4986.87736056,0.00022899,2]
[311295162,1705041038823,-4986.87736056,0.00022899,2]
[311295163,1705041038832,-4986.87736056,0.00022899,2]
[311295164,1705041038841,-4986.87736056,0.000229,2]
[311295165,1705041038850,-4986.87736056,0.000229,2]
[311295166,1705041038860,-4986.87736056,0.000229,2]
[311295167,1705041038869,-4986.87736056,0.000229,2]
[311295168,1705041038878,-4986.87736056,0.000229,2]
[311295169,1705041038887,-8407.235402,0.000229,2]
[311295170,1705041038896,-5743.3411823,0.000229,2]
[311295171,1705041038906,-157.39029623,0.000229,2]
[311295172,1705041038916,-4986.87736056,0.000229,2]
[311295173,1705041038925,-359.40515285,0.000229,2]
[311295174,1705041038934,-6457.3944484,0.000229,2]
[311295175,1705041038944,-510.56839934,0.000229,2]
[311295176,1705041038954,-351.08560145,0.000229,2]
[311295177,1705041038963,-2071.96197998,0.000229,2]
[311295178,1705041038972,-376.3949978,0.000229,2]
[311295179,1705041038981,-189.67,0.00022924,2]
[311295180,1705041038990,-150.7,0.00022929,2]
[311295181,1705041038999,-224.76162302,0.00022949,2]
[311295182,1705041039008,-189.67,0.00022984,2]
[311295183,1705041039017,-650.75415232,0.00022997,2]
[311295184,1705041039026,-248.37048046,0.00022997,2]
[311295185,1705041039035,-386.39411499,0.00022997,2]
[311295186,1705041039045,-24308.12626099,0.00022997,2]
[311295187,1705041039054,-400.0,0.00022997,2]
[311295188,1705041039064,-4111.19021614,0.00022998,2]
[311295189,1705041039074,-12283.43506918,0.00022998,2]
[311295190,1705041039083,-157.06817236,0.00022998,2]
[311295191,1705041039095,-1894.45782456,0.00022998,2]
[311295192,1705041039105,-429.04606555,0.00022998,2]
[311295193,1705041039115,-5522.24929208,0.00022998,2]
[311295194,1705041039124,-473.75389958,0.00022998,2]
[311295195,1705041039134,-150000.0,0.00022999,3]
[311295196,1705041039143,-150000.0,0.00022999,3]
[311295197,1705041039153,-150000.0,0.00022999,3]
[311295198,1705041039163,-150000.0,0.00022999,3]
[311295199,1705041039173,-121955.44966512,0.00022999,3]
[311295200,1705041039182,-5640.78703364,0.00022999,3]